bitfinex-derivatives/quotes_BTCF0:USTF0_20251220
["timestamp","ask_amount","ask_price","bid_price","bid_amount"]
[1766194969525,0.0113563,88106.0,88098.0,2.3e-07]
[1766194984030,0.0113566,88103.0,88098.0,2.3e-07]
[1766195008051,0.0113561,88107.0,88098.0,2.3e-07]
[1766195009849,0.0113565,88104.0,88098.0,2.3e-07]
[1766195018964,0.22697661,88110.0,88060.0,0.22697661]
[1766195019170,0.22697661,88110.0,88063.0,0.0113616]
[1766195019171,0.0113589,88085.0,88063.0,0.0113616]
[1766195019357,4.702e-05,88084.0,88063.0,0.0113616]
[1766195020259,0.00017023,88082.0,88065.0,0.00017023]
[1766195025981,0.00017023,88082.0,88065.0,0.01153153]
[1766195026479,0.00017023,88082.0,88065.0,0.00017023]
[1766195026880,0.00017023,88082.0,88069.0,0.0113609]
[1766195029676,0.00017023,88082.0,88070.0,0.22697661]
[1766195029877,0.00017023,88082.0,88071.0,0.0113606]
[1766195031285,0.00017023,88082.0,88070.0,0.22697661]
[1766195031494,3e-08,88082.0,88075.0,0.0113601]
[1766195031790,7.05e-06,88084.0,88075.0,0.0113601]
[1766195032293,0.01132455,88096.0,88075.0,0.0113601]
[1766195032790,0.00017023,88094.0,88075.0,0.0113601]
[1766195033392,0.00017023,88094.0,88071.0,0.0113606]
[1766195033983,0.0113578,88093.0,88071.0,0.0113606]
[1766195034388,0.0113578,88093.0,88071.0,0.0113206]
[1766195034888,0.0113578,88093.0,88070.0,0.22697661]
[1766195035087,0.0113582,88090.0,88070.0,0.22697661]
[1766195035283,0.0113582,88090.0,88067.0,0.0113611]
[1766195043685,0.01152803,88094.0,88070.0,0.0113607]
[1766195043883,0.0113581,88091.0,88070.0,0.0113607]
[1766195044286,0.0113581,88091.0,88066.0,0.0113612]
[1766195045999,0.0113581,88091.0,88070.0,0.0113608]
[1766195048600,0.0113581,88091.0,88070.0,0.23833741]
[1766195050812,0.0113581,88091.0,88070.0,0.0113608]
[1766195051104,0.0113581,88091.0,88070.0,0.23833741]
[1766195055916,0.0113581,88091.0,88070.0,0.23840283]
[1766195057608,0.0113581,88091.0,88070.0,0.23840364]
[1766195058215,0.00017023,88094.0,88074.0,0.0113603]
[1766195058504,0.00017023,88094.0,88070.0,0.22704284]
[1766195058505,0.02811672,88093.0,88070.0,0.23840354]
[1766195058704,0.02811672,88092.0,88080.0,0.22704284]
[1766195058903,0.02811672,88091.0,88080.0,0.22704284]
[1766195059107,0.01152793,88094.0,88080.0,0.22704284]
[1766195059299,0.011358,88092.0,88080.0,0.22704284]
[1766195059500,0.02811684,88091.0,88080.0,0.22704284]
[1766195060211,0.0113586,88087.0,88080.0,0.22704284]
[1766195060512,0.0113586,88087.0,88070.0,0.22704284]
[1766195061813,0.00017023,88094.0,88070.0,0.22704284]
[1766195062013,0.02811736,88093.0,88070.0,0.22704284]
[1766195062214,0.02811736,88092.0,88070.0,0.22704284]
[1766195062415,0.02811736,88091.0,88070.0,0.22704284]
[1766195062610,0.02811736,88090.0,88070.0,0.22704284]
[1766195062811,0.0113584,88089.0,88070.0,0.22704284]
[1766195063512,0.0113579,88093.0,88070.0,0.22704284]
[1766195063706,0.02811591,88092.0,88070.0,0.22704284]
[1766195063911,0.02811591,88091.0,88071.0,0.0113606]
[1766195064111,0.02811591,88090.0,88071.0,0.0113606]
[1766195064415,0.0113579,88093.0,88071.0,0.0113606]
[1766195064610,0.02811564,88092.0,88071.0,0.0113606]
[1766195064915,0.02811564,88091.0,88071.0,0.0113606]
[1766195065102,0.0113579,88093.0,88071.0,0.0113606]
[1766195065416,0.02811563,88092.0,88071.0,0.0113606]
[1766195065616,0.02811563,88091.0,88071.0,0.0113606]
[1766195065821,0.0113579,88093.0,88071.0,0.0113606]
[1766195066022,0.02811556,88092.0,88071.0,0.0113606]
[1766195066316,0.02811556,88091.0,88071.0,0.0113606]
[1766195066516,0.0113579,88093.0,88071.0,0.0113606]
[1766195066718,0.02811547,88092.0,88071.0,0.0113606]
[1766195067018,0.02811547,88091.0,88071.0,0.0113606]
[1766195067217,0.00017023,88094.0,88071.0,0.0113606]
[1766195067419,0.02811542,88093.0,88074.0,0.0113603]
[1766195067613,0.02811542,88092.0,88080.0,0.22704284]
[1766195067813,0.00017023,88094.0,88080.0,0.22704284]
[1766195068015,0.02811474,88093.0,88080.0,0.22704284]
[1766195068213,0.02811474,88092.0,88080.0,0.22704284]
[1766195068421,0.00017023,88094.0,88080.0,0.22704284]
[1766195068720,0.02811467,88093.0,88080.0,0.22704284]
[1766195068917,0.02811467,88092.0,88080.0,0.22704284]
[1766195069118,0.00017023,88094.0,88080.0,0.22704284]
[1766195069310,0.02811466,88093.0,88080.0,0.22704284]
[1766195069618,0.02811466,88092.0,88080.0,0.22704284]
[1766195069819,0.0281149,88091.0,88080.0,0.22704284]
[1766195070021,0.00017023,88094.0,88080.0,0.22704284]
[1766195070219,0.0281149,88093.0,88080.0,0.22704284]
[1766195070419,0.0281149,88092.0,88080.0,0.22704284]
[1766195070720,0.00017023,88094.0,88080.0,0.22704284]
[1766195071020,0.02811495,88093.0,88080.0,0.22704284]
[1766195076225,0.02811495,88093.0,88075.0,0.0113601]
[1766195076523,0.02811495,88093.0,88080.0,0.22704284]
[1766195080025,0.02811495,88093.0,88071.0,0.0113606]
[1766195080325,0.03947285,88093.0,88080.0,0.22704284]
[1766195080525,0.02811495,88092.0,88080.0,0.22704284]
[1766195080724,0.0113579,88093.0,88071.0,0.0113606]
[1766195080925,0.02811396,88092.0,88071.0,0.0113606]
[1766195081127,0.0113579,88093.0,88071.0,0.0113606]
[1766195081326,0.02811383,88092.0,88071.0,0.0113606]
[1766195081516,0.0113579,88093.0,88071.0,0.0113606]
[1766195081716,0.02811382,88092.0,88071.0,0.0113606]
[1766195081923,0.0113579,88093.0,88071.0,0.0113606]
[1766195082124,0.02811381,88092.0,88071.0,0.0113606]
[1766195082325,0.0113579,88093.0,88071.0,0.0113606]
[1766195082526,0.02811381,88092.0,88071.0,0.0113606]
[1766195082725,0.00017023,88094.0,88071.0,0.0113606]
[1766195083020,0.02811401,88093.0,88071.0,0.0113606]
[1766195083223,0.00017023,88094.0,88071.0,0.0113606]
[1766195083224,0.02811401,88092.0,88071.0,0.0113606]
[1766195083423,0.00017023,88094.0,88071.0,0.0113606]
[1766195083623,0.02811385,88093.0,88071.0,0.0113606]
[1766195083821,0.02811385,88092.0,88071.0,0.0113606]
[1766195084126,0.02811385,88091.0,88071.0,0.0113606]
[1766195084327,0.00017023,88094.0,88071.0,0.0113606]
[1766195084530,0.02811395,88093.0,88071.0,0.0113606]
[1766195084723,0.02811395,88092.0,88071.0,0.0113606]
[1766195084923,0.02811395,88091.0,88071.0,0.0113606]
[1766195085126,0.00017023,88094.0,88071.0,0.0113606]
[1766195085323,0.02811395,88093.0,88071.0,0.0113606]
[1766195085528,0.02811395,88092.0,88071.0,0.0113606]
[1766195085725,0.02811395,88091.0,88071.0,0.0113606]
[1766195085921,0.01152793,88094.0,88071.0,0.0113606]
[1766195086122,0.02811393,88093.0,88071.0,0.0113606]
[1766195086323,0.02811393,88092.0,88071.0,0.0113606]
[1766195086523,0.02811393,88091.0,88071.0,0.0113606]
[1766195086725,0.01152793,88094.0,88071.0,0.0113606]
[1766195087024,0.02811391,88093.0,88071.0,0.0113606]
[1766195087224,0.02811391,88092.0,88071.0,0.0113606]
[1766195087424,0.01152793,88094.0,88071.0,0.0113606]
[1766195087425,0.02811391,88091.0,88071.0,0.0113606]
[1766195087626,0.01152793,88094.0,88071.0,0.0113606]
[1766195087827,0.02811391,88093.0,88071.0,0.0113606]
[1766195088026,0.02811391,88092.0,88071.0,0.0113606]
[1766195088227,0.01152793,88094.0,88080.0,0.22704284]
[1766195088437,0.02810336,88093.0,88080.0,0.22704284]
[1766195088638,0.02810336,88092.0,88080.0,0.22704284]
[1766195088843,0.01152793,88094.0,88080.0,0.22704284]
[1766195089039,0.02810338,88093.0,88080.0,0.22704284]
[1766195089243,0.02810338,88092.0,88080.0,0.22704284]
[1766195089544,0.01152793,88094.0,88080.0,0.22704284]
[1766195089743,0.02810339,88093.0,88080.0,0.22704284]
[1766195089943,0.02810339,88092.0,88080.0,0.22704284]
[1766195090245,0.01152793,88094.0,88080.0,0.22704284]
[1766195090548,0.02810328,88093.0,88080.0,0.22704284]
[1766195090748,0.02810328,88092.0,88080.0,0.22704284]
[1766195091047,0.01152793,88094.0,88080.0,0.22704284]
[1766195091246,0.02810334,88093.0,88080.0,0.22704284]
[1766195091450,0.02810334,88092.0,88080.0,0.22704284]
[1766195091648,0.01152793,88094.0,88080.0,0.22704284]
[1766195091849,0.0281036,88093.0,88080.0,0.22704284]
[1766195092048,0.0281036,88092.0,88080.0,0.22704284]
[1766195092250,0.01152793,88094.0,88080.0,0.22704284]
[1766195092449,0.02810394,88093.0,88080.0,0.22704284]
[1766195092649,0.02810394,88092.0,88073.0,0.0113603]
[1766195092852,0.01152793,88094.0,88073.0,0.0113603]
[1766195093041,0.02810394,88093.0,88073.0,0.0113603]
[1766195093239,0.02810394,88092.0,88073.0,0.0113603]
[1766195093438,0.02810394,88091.0,88073.0,0.0113603]
[1766195093654,0.01152793,88094.0,88073.0,0.0113603]
[1766195093849,0.02810449,88093.0,88073.0,0.0113603]
[1766195094049,0.02810449,88092.0,88074.0,0.0113602]
[1766195094244,0.02810449,88091.0,88080.0,0.22704284]
[1766195094447,0.01152793,88094.0,88080.0,0.22704284]
[1766195094752,0.02810465,88093.0,88080.0,0.22704284]
[1766195094948,0.02810465,88092.0,88080.0,0.22704284]
[1766195095148,0.02810465,88091.0,88074.0,0.0113602]
[1766195095350,0.01152793,88094.0,88080.0,0.22704284]
[1766195095652,0.02810465,88093.0,88080.0,0.22704284]
[1766195095842,0.02810465,88092.0,88080.0,0.22704284]
[1766195096045,0.02810465,88091.0,88080.0,0.22704284]
[1766195096241,0.01152793,88094.0,88080.0,0.22704284]
[1766195096443,0.02810476,88093.0,88080.0,0.22704284]
[1766195096757,0.02810476,88092.0,88080.0,0.22704284]
[1766195096958,0.02810476,88091.0,88080.0,0.22704284]
[1766195097157,0.01152793,88094.0,88080.0,0.22704284]
[1766195097360,0.02810476,88093.0,88080.0,0.22704284]
[1766195097551,0.02810476,88092.0,88080.0,0.22704284]
[1766195097751,0.02810476,88091.0,88080.0,0.22704284]
[1766195097951,0.01152793,88094.0,88080.0,0.22704284]
[1766195098152,0.02810481,88093.0,88080.0,0.22704284]
[1766195098357,0.02810481,88092.0,88080.0,0.22704284]
[1766195098561,0.02810481,88091.0,88080.0,0.22704284]
[1766195098763,0.01152803,88094.0,88080.0,0.22704284]
[1766195098965,0.02810472,88093.0,88080.0,0.22704284]
[1766195099259,0.02810472,88092.0,88080.0,0.22704284]
[1766195099446,0.02810472,88091.0,88080.0,0.22704284]
[1766195099645,0.01152803,88094.0,88070.0,0.22704284]
[1766195099858,0.02810466,88093.0,88070.0,0.22704284]
[1766195100059,0.02810466,88092.0,88070.0,0.22704284]
[1766195100361,0.02810466,88091.0,88074.0,0.0113602]
[1766195100554,0.01152803,88094.0,88074.0,0.0113602]
[1766195100760,0.0281046,88093.0,88074.0,0.0113602]
[1766195101060,0.0281046,88092.0,88074.0,0.0113602]
[1766195101252,0.0281046,88091.0,88074.0,0.0113602]
[1766195101450,0.01152803,88094.0,88074.0,0.0113602]
[1766195101646,0.02810458,88093.0,88074.0,0.0113602]
[1766195101851,0.02810458,88092.0,88074.0,0.0113602]
[1766195102057,0.02810458,88091.0,88074.0,0.0113602]
[1766195102252,2.3e-07,88094.0,88080.0,0.22704284]
[1766195102462,0.0113567,88102.0,88084.0,0.22704284]
[1766195102661,0.02810156,88101.0,88090.0,0.22704284]
[1766195102856,0.0113549,88116.0,88090.0,0.22704284]
[1766195103064,0.0113549,88116.0,88080.0,0.22704284]
[1766195103065,0.0113552,88114.0,88080.0,0.22704284]
[1766195103256,0.0272651,88113.0,88090.0,0.22704284]
[1766195103566,0.22704284,88120.0,88090.0,0.22704284]
[1766195103567,0.011356,88108.0,88090.0,0.22704284]
[1766195105951,0.0113554,88113.0,88090.0,0.22704284]
[1766195106285,0.0113557,88110.0,88090.0,0.22704284]
[1766195111968,0.0113561,88107.0,88090.0,0.22704284]
[1766195117379,0.0113561,88107.0,88088.0,0.00017023]
[1766195118874,0.0113547,88118.0,88088.0,0.00017023]
[1766195119077,0.0113546,88119.0,88094.0,0.0113577]
[1766195124776,0.011354,88123.0,88097.0,0.0113572]
[1766195124971,0.0113528,88133.0,88110.0,0.22691137]
[1766195125173,0.22691137,88160.0,88110.0,0.22691137]
[1766195125373,0.011352,88139.0,88120.0,0.22691137]
[1766195125573,0.0113499,88155.0,88121.0,0.00017023]
[1766195125866,0.02516758,88154.0,88121.0,0.00017023]
[1766195126077,0.02516758,88153.0,88121.0,0.00017023]
[1766195126279,0.02516758,88152.0,88121.0,0.00017023]
[1766195126579,0.02516758,88151.0,88121.0,0.00017023]
[1766195126781,0.0113519,88140.0,88121.0,0.00017023]
[1766195128171,0.0113522,88137.0,88121.0,0.00017023]
[1766195141480,0.0113517,88141.0,88121.0,0.00017023]
[1766195141979,0.011349,88162.0,88122.0,0.0113541]
[1766195141980,0.011351,88146.0,88122.0,0.0113541]
[1766195142179,0.22691137,88160.0,88122.0,0.0113541]
[1766195142381,0.011349,88162.0,88122.0,0.0113541]
[1766195142382,0.22691137,88150.0,88122.0,0.0113541]
[1766195142991,0.0113516,88142.0,88122.0,0.0113541]
[1766195143589,0.011349,88162.0,88121.0,0.00017023]
[1766195143590,0.0113504,88151.0,88129.0,0.0113532]
[1766195143782,0.0113508,88148.0,88125.0,0.0113536]
[1766195145990,0.22691137,88160.0,88125.0,0.0113536]
[1766195146191,0.02514783,88159.0,88125.0,0.0113536]
[1766195146496,0.02514783,88158.0,88125.0,0.0113536]
[1766195146694,0.02514783,88157.0,88125.0,0.0113536]
[1766195146895,0.02514783,88156.0,88125.0,0.0113536]
[1766195147098,0.02514783,88155.0,88125.0,0.0113536]
[1766195147395,0.02514783,88154.0,88125.0,0.0113536]
[1766195147695,0.0113504,88151.0,88130.0,0.22691137]
[1766195147890,0.0113504,88151.0,88114.0,0.01125121]
[1766195147891,0.0113504,88151.0,88132.0,0.00017023]
[1766195150988,0.00238065,88170.0,88132.0,0.00017023]
[1766195151186,0.0113496,88157.0,88133.0,0.0113527]
[1766195151795,0.0113496,88157.0,88136.0,0.0113522]
[1766195154999,0.0113496,88157.0,88132.0,0.00017023]
[1766195155194,0.0113496,88157.0,88133.0,0.0113527]
[1766195155400,0.0113484,88167.0,88133.0,0.0113527]
[1766195155599,0.02494756,88166.0,88133.0,0.0113527]
[1766195155791,0.02494756,88165.0,88133.0,0.0113527]
[1766195155992,0.02494756,88164.0,88133.0,0.0113527]
[1766195156201,0.02494756,88163.0,88133.0,0.0113527]
[1766195156496,0.22929202,88170.0,88133.0,0.0113527]
[1766195156802,0.01135,88154.0,88133.0,0.0113527]
[1766195160005,0.0113481,88169.0,88133.0,0.0113526]
[1766195160213,0.02494123,88168.0,88133.0,0.0113526]
[1766195160396,0.0113481,88169.0,88133.0,0.0113526]
[1766195160397,0.02494123,88167.0,88133.0,0.0113526]
[1766195160596,0.0113503,88152.0,88132.0,0.00017023]
[1766195161504,0.0113498,88156.0,88133.0,0.0113526]
[1766195161704,0.0113502,88153.0,88133.0,0.0113526]
[1766195163698,0.0113502,88153.0,88132.0,0.00017023]
[1766195165205,0.0113505,88150.0,88132.0,0.00017023]
[1766195169121,0.01135,88154.0,88132.0,0.00017023]
[1766195172320,0.0113504,88151.0,88132.0,0.00017023]
[1766195173915,0.0113504,88151.0,88132.0,0.01152303]
[1766195177313,0.0113504,88151.0,88132.0,0.00017023]
[1766195177513,0.0113506,88150.0,88132.0,0.00017023]
[1766195178925,0.0113504,88151.0,88132.0,0.00017023]
[1766195189526,0.22674544,88160.0,88132.0,0.00017023]
[1766195189728,0.02495505,88159.0,88132.0,0.00017023]
[1766195189929,0.02495505,88158.0,88132.0,0.00017023]
[1766195190128,0.02495505,88157.0,88132.0,0.00017023]
[1766195190332,0.02495505,88156.0,88132.0,0.00017023]
[1766195190520,0.02495505,88155.0,88132.0,0.00017023]
[1766195190722,0.22674544,88160.0,88132.0,0.00017023]
[1766195190921,0.02484928,88159.0,88132.0,0.00017023]
[1766195191230,0.0113505,88151.0,88132.0,0.00017023]
[1766195191944,0.2267491,88160.0,88132.0,0.00017023]
[1766195192232,0.2267491,88160.0,80404.0,3.0]
[1766195192233,0.2381007,88142.0,88120.0,0.2267491]
[1766195192432,0.2267491,88142.0,88120.0,0.2267491]
[1766195192731,0.0113522,88137.0,88120.0,0.2267491]
[1766195193122,0.00017023,88137.0,88121.0,0.0113541]
[1766195193521,0.00017023,88137.0,88124.0,0.0113537]
[1766195199235,0.00017023,88137.0,88120.0,0.23827353]
[1766195200832,0.00017023,88137.0,88120.0,0.00017023]
[1766195201027,0.00017023,88137.0,88120.0,2.3e-07]
[1766195201226,0.00017023,88137.0,88090.0,0.10492926]
[1766195201227,0.2267491,88130.0,88093.0,0.08170966]
[1766195201427,0.0113545,88120.0,88100.0,0.2267491]
[1766195201626,0.0113539,88124.0,88100.0,0.2267491]
[1766195202129,0.0113539,88124.0,88102.0,0.0113567]
[1766195202640,0.00017023,88122.0,88104.0,0.00017023]
[1766195204327,0.00017023,88122.0,88105.0,0.0113563]
[1766195204529,0.00017023,88122.0,88110.0,0.2267491]
[1766195205439,0.00017023,88122.0,88105.0,0.0113563]
[1766195206931,0.00017023,88122.0,88104.0,0.00017023]
[1766195206932,0.2267491,88120.0,88104.0,0.00017023]
[1766195207241,0.0113549,88116.0,88104.0,0.00017023]
[1766195207540,0.0113549,88116.0,88104.0,2.3e-07]
[1766195209232,0.01152443,88122.0,88104.0,2.3e-07]
[1766195209432,0.2267491,88120.0,88104.0,2.3e-07]
[1766195209638,0.0113545,88119.0,88104.0,2.3e-07]
[1766195212532,0.2267491,88120.0,88104.0,2.3e-07]
[1766195215144,0.00017023,88122.0,88104.0,2.3e-07]
[1766195216043,0.0113543,88121.0,88104.0,2.3e-07]
[1766195222046,0.00017023,88122.0,88104.0,2.3e-07]
[1766195222549,0.00017023,88122.0,88110.0,0.2267491]
[1766195225254,0.00017023,88122.0,88111.0,0.0113555]
[1766195228056,0.00017023,88122.0,88110.0,0.2267491]
[1766195230353,0.00017023,88122.0,88111.0,0.0113555]
[1766195230562,0.00017023,88122.0,88114.0,0.0113551]
[1766195233968,0.00017023,88122.0,88110.0,0.2381047]
[1766195239373,0.00017023,88122.0,88110.0,0.2382001]
[1766195242371,3e-08,88122.0,88110.0,0.2268445]
[1766195242571,3e-08,88122.0,88118.0,0.0113546]
[1766195243573,3e-08,88122.0,88114.0,0.011355]
[1766195245178,3e-08,88122.0,88110.0,0.2268445]
[1766195246278,3e-08,88122.0,88115.0,0.011355]
[1766195249081,3e-08,88122.0,88118.0,0.0113546]
[1766195251071,3e-08,88122.0,88114.0,0.011355]
[1766195251987,3e-08,88122.0,88110.0,0.2268445]
[1766195253778,0.06099996,88157.0,88110.0,0.453689]
[1766195253979,0.0113499,88155.0,88140.0,0.2268445]
[1766195254291,0.0113499,88155.0,88131.0,0.0113528]
[1766195254584,0.0113494,88159.0,88134.0,0.0113525]
[1766195254887,0.00017023,88155.0,88138.0,0.00017023]
[1766195255091,0.00017023,88155.0,88140.0,0.2268445]
[1766195255292,0.00017023,88155.0,88139.0,0.0113519]
[1766195257582,0.00017023,88155.0,88138.0,0.00017023]
[1766195257583,2.3e-07,88155.0,88142.0,0.0113515]
[1766195257779,0.0113479,88171.0,88147.0,0.0113508]
[1766195258385,0.0113479,88171.0,88150.0,0.2268445]
[1766195258782,0.00016982,88169.0,88152.0,0.00017012]
[1766195272501,0.0113482,88168.0,88152.0,0.00017012]
[1766195274302,0.00016982,88169.0,88152.0,0.00017012]
[1766195274699,0.26486922,88251.0,88152.0,0.00017012]
[1766195274700,0.0113443,88198.0,88159.0,0.22664362]
[1766195274892,0.02497768,88197.0,88159.0,0.23799282]
[1766195275093,0.0113443,88198.0,88159.0,0.23799282]
[1766195275094,0.02497768,88196.0,88159.0,0.23799282]
[1766195275398,0.0113466,88181.0,88159.0,0.23799282]
[1766195275803,0.0113466,88181.0,88161.0,0.00017012]
[1766195276703,0.011347,88178.0,88161.0,0.00017012]
[1766195278699,0.0113473,88175.0,88161.0,0.00017012]
[1766195278899,0.0113477,88172.0,88161.0,0.00017012]
[1766195279099,0.0113472,88176.0,88161.0,1.2e-07]
[1766195279301,0.0113476,88173.0,88161.0,1.2e-07]
[1766195280195,0.011347,88178.0,88161.0,1.2e-07]
[1766195280502,0.00017,88176.0,88161.0,1.2e-07]
[1766195281203,0.0113477,88172.0,88161.0,1.2e-07]
[1766195282007,0.0115172,88176.0,88161.0,1.2e-07]
[1766195282206,0.0113477,88172.0,88161.0,1.2e-07]
[1766195285913,0.0115172,88176.0,88161.0,1.2e-07]
[1766195287911,0.0113476,88173.0,88161.0,1.2e-07]
[1766195288912,0.0113482,88168.0,88161.0,1.2e-07]
[1766195289113,0.0113478,88172.0,88161.0,1.2e-07]
[1766195293214,0.0113473,88175.0,88161.0,1.2e-07]
[1766195294309,0.00017,88176.0,88161.0,1.2e-07]
[1766195296717,0.0115172,88176.0,88161.0,1.2e-07]
[1766195299425,0.0113475,88173.0,88161.0,1.2e-07]
[1766195302021,0.0113479,88170.0,88161.0,1.2e-07]
[1766195302415,0.0113475,88174.0,88161.0,1.2e-07]
[1766195303827,0.0113478,88171.0,88161.0,1.2e-07]
[1766195314325,0.0113477,88172.0,88161.0,1.2e-07]
[1766195334442,0.00017,88176.0,88161.0,1.2e-07]
[1766195334642,0.0113492,88160.0,88140.0,0.22663631]
[1766195334945,0.0113492,88160.0,88140.0,0.22659631]
[1766195335529,0.0113495,88158.0,88141.0,0.00017012]
[1766195335728,0.0113515,88143.0,88123.0,0.08170966]
[1766195335935,0.0113509,88147.0,88130.0,0.22663631]
[1766195336145,0.0113513,88144.0,88130.0,0.22663631]
[1766195336342,0.22663631,88160.0,88130.0,0.22663631]
[1766195336343,0.0113506,88149.0,88130.0,0.22663631]
[1766195336944,0.00017012,88148.0,88131.0,0.00017012]
[1766195337243,0.0113509,88147.0,88131.0,0.00017012]
[1766195340146,0.00017012,88148.0,88131.0,0.00017012]
[1766195340542,0.00017012,88148.0,88132.0,0.0113528]
[1766195341849,0.00017012,88148.0,88131.0,0.00017012]
[1766195342546,0.00017012,88148.0,88131.0,1.2e-07]
[1766195342846,0.22663631,88141.0,88131.0,1.2e-07]
[1766195343238,0.0113522,88137.0,88131.0,1.2e-07]
[1766195343940,0.0113521,88138.0,88131.0,1.2e-07]
[1766195349551,0.22663631,88141.0,88131.0,1.2e-07]
[1766195350644,0.0113518,88140.0,88131.0,1.2e-07]
[1766195353853,0.22663631,88141.0,88131.0,1.2e-07]
[1766195354455,0.0113512,88145.0,88131.0,1.2e-07]
[1766195364056,0.0113516,88142.0,88131.0,1.2e-07]
[1766195365457,0.011351,88147.0,88131.0,1.2e-07]
[1766195365664,0.0113513,88144.0,88131.0,1.2e-07]
[1766195374564,0.00017012,88148.0,88131.0,1.2e-07]
[1766195374565,0.0113509,88147.0,88131.0,1.2e-07]
[1766195374768,0.02633349,88146.0,88131.0,1.2e-07]
[1766195374957,0.02633349,88145.0,88131.0,1.2e-07]
[1766195375157,0.02633349,88144.0,88131.0,1.2e-07]
[1766195375360,0.0113509,88147.0,88131.0,1.2e-07]
[1766195375561,0.02633387,88146.0,88131.0,1.2e-07]
[1766195375760,0.02633387,88145.0,88131.0,1.2e-07]
[1766195375962,0.02633387,88144.0,88131.0,1.2e-07]
[1766195376163,0.0113509,88147.0,88131.0,1.2e-07]
[1766195376461,0.02633426,88146.0,88131.0,1.2e-07]
[1766195376662,0.02633426,88145.0,88131.0,1.2e-07]
[1766195376863,0.02633426,88144.0,88131.0,1.2e-07]
[1766195377066,0.0113509,88147.0,88131.0,1.2e-07]
[1766195377368,0.02633439,88146.0,88131.0,1.2e-07]
[1766195377668,0.02633439,88145.0,88131.0,1.2e-07]
[1766195377869,0.02633439,88144.0,88131.0,1.2e-07]
[1766195378171,0.0113511,88145.0,88131.0,1.2e-07]
[1766195378470,0.02633522,88144.0,88131.0,1.2e-07]
[1766195378671,0.0113511,88145.0,88131.0,1.2e-07]
[1766195378969,0.02633522,88144.0,88131.0,1.2e-07]
[1766195379267,0.0113511,88145.0,88131.0,1.2e-07]
[1766195379471,0.02633567,88144.0,88131.0,1.2e-07]
[1766195379669,0.0113511,88145.0,88131.0,1.2e-07]
[1766195379854,0.02633565,88144.0,88131.0,1.2e-07]
[1766195380058,0.0113511,88145.0,88131.0,1.2e-07]
[1766195380259,0.02633565,88144.0,88131.0,1.2e-07]
[1766195380460,0.0113515,88142.0,88131.0,1.2e-07]
[1766195381670,0.011352,88139.0,88131.0,1.2e-07]
[1766195382173,0.0113513,88144.0,88131.0,1.2e-07]
[1766195382368,0.0113515,88142.0,88131.0,1.2e-07]
[1766195382875,0.0113509,88147.0,88131.0,1.2e-07]
[1766195383172,0.0113512,88145.0,88131.0,1.2e-07]
[1766195383474,0.02633735,88144.0,88131.0,1.2e-07]
[1766195388274,0.0113512,88145.0,88131.0,1.2e-07]
[1766195388876,0.02623625,88144.0,88131.0,1.2e-07]
[1766195389076,0.0113512,88145.0,88131.0,1.2e-07]
[1766195389276,0.0113514,88143.0,88131.0,1.2e-07]
[1766195396880,0.00017012,88148.0,88131.0,1.2e-07]
[1766195397079,0.02623701,88147.0,88131.0,1.2e-07]
[1766195397278,0.02623701,88146.0,88131.0,1.2e-07]
[1766195397479,0.02623701,88145.0,88131.0,1.2e-07]
[1766195397777,0.00017012,88148.0,88131.0,1.2e-07]
[1766195397979,0.02623704,88147.0,88131.0,1.2e-07]
[1766195398178,0.0113512,88145.0,88131.0,1.2e-07]
[1766195399379,0.0262371,88144.0,88131.0,1.2e-07]
[1766195399580,0.0113512,88145.0,88131.0,1.2e-07]
[1766195399773,0.0262371,88144.0,88131.0,1.2e-07]
[1766195400080,0.0113512,88145.0,88131.0,1.2e-07]
[1766195400677,0.02623696,88144.0,88131.0,1.2e-07]
[1766195400876,0.0113509,88147.0,88131.0,1.2e-07]
[1766195401071,0.02623695,88146.0,88131.0,1.2e-07]
[1766195401282,0.02623695,88145.0,88131.0,1.2e-07]
[1766195401488,0.02623695,88144.0,88131.0,1.2e-07]
[1766195401780,0.0113509,88147.0,88131.0,1.2e-07]
[1766195401980,0.02623693,88146.0,88131.0,1.2e-07]
[1766195402184,0.02623693,88145.0,88131.0,1.2e-07]
[1766195402484,0.02623693,88144.0,88131.0,1.2e-07]
[1766195402685,0.0113509,88147.0,88131.0,1.2e-07]
[1766195402983,0.02623691,88146.0,88131.0,1.2e-07]
[1766195403179,0.02623691,88145.0,88131.0,1.2e-07]
[1766195403386,0.02623691,88144.0,88131.0,1.2e-07]
[1766195403683,0.0113509,88147.0,88131.0,1.2e-07]
[1766195403886,0.0113511,88145.0,88131.0,1.2e-07]
[1766195404078,0.0113518,88140.0,88131.0,1.2e-07]
[1766195405380,0.0113523,88137.0,88131.0,1.2e-07]
[1766195405590,0.0113524,88136.0,88131.0,1.2e-07]
[1766195406185,0.0113518,88141.0,88131.0,1.2e-07]
[1766195408776,0.00017012,88148.0,88131.0,1.2e-07]
[1766195409082,0.02623557,88147.0,88131.0,1.2e-07]
[1766195409286,0.02623557,88146.0,88131.0,1.2e-07]
[1766195409487,0.02623557,88145.0,88131.0,1.2e-07]
[1766195409690,0.00017012,88148.0,88131.0,1.2e-07]
[1766195409884,0.02623519,88147.0,88131.0,1.2e-07]
[1766195410091,0.02623519,88146.0,88131.0,1.2e-07]
[1766195410291,0.02623519,88145.0,88131.0,1.2e-07]
[1766195410490,0.00017012,88148.0,88131.0,1.2e-07]
[1766195410691,0.02623486,88147.0,88131.0,1.2e-07]
[1766195410992,0.02623486,88146.0,88131.0,1.2e-07]
[1766195411189,0.0113514,88143.0,88131.0,1.2e-07]
[1766195415198,0.00568,88142.0,88131.0,1.2e-07]
[1766195418303,0.0113517,88141.0,88131.0,1.2e-07]
[1766195431208,0.00568,88142.0,88131.0,1.2e-07]
[1766195440412,0.0113517,88141.0,88131.0,1.2e-07]
[1766195442608,0.23815179,88141.0,88131.0,1.2e-07]
[1766195443517,0.22680009,88141.0,88131.0,1.2e-07]
[1766195443903,0.00568,88142.0,88131.0,1.2e-07]
[1766195445213,0.0113518,88140.0,88131.0,1.2e-07]
[1766195446519,0.00568,88142.0,88131.0,1.2e-07]
[1766195453525,0.0113517,88141.0,88131.0,1.2e-07]
[1766195454023,0.011352,88138.0,88131.0,1.2e-07]
[1766195458323,0.00568,88137.0,88131.0,1.2e-07]
[1766195524975,0.0113523,88136.0,88131.0,1.2e-07]
[1766195525171,0.0113523,88136.0,88114.0,0.08170966]
[1766195525172,0.0113532,88130.0,88106.0,0.11295979]
[1766195525370,0.0113532,88130.0,88098.0,0.14309672]
[1766195525371,0.00568,88129.0,88105.0,0.00036]
[1766195525574,0.0113539,88124.0,88105.0,0.00036]
[1766195525772,0.00568,88123.0,88105.0,0.00036]
[1766195526172,8.532e-05,88122.0,88106.0,0.0113561]
[1766195527070,8.532e-05,88122.0,88105.0,0.00053023]
[1766195531394,8.532e-05,88122.0,88106.0,0.0113561]
[1766195532583,8.532e-05,88122.0,88105.0,0.00053023]
[1766195538291,8.532e-05,88122.0,88106.0,0.0113561]
[1766195550305,8.532e-05,88122.0,88105.0,0.00053023]
[1766195554813,8.532e-05,88122.0,88105.0,0.01188653]
[1766195559218,8.532e-05,88122.0,88105.0,0.00053023]
[1766195560120,0.22689389,88120.0,88105.0,0.00053023]
[1766195561818,8.532e-05,88122.0,88105.0,0.00053023]
[1766195565018,8.532e-05,88122.0,88106.0,0.0113561]
[1766195577127,0.00568,88125.0,88110.0,0.23824939]
[1766195577428,0.00568,88126.0,88110.0,0.0113555]
[1766195579928,0.00568,88126.0,88106.0,0.0113561]